[Event "*** Titled Tuesday Blitz"]
[Site "Chess.com"]
[Date "2021.02.02"]
[Round "5"]
[White "Isajevsky_Anton"]
[Black "vugarrasulov"]
[Result "1/2-1/2"]
[WhiteElo "2537"]
[BlackElo "2740"]
[TimeControl "180+1"]
[EndTime "10:59:44 PST"]
[Termination "Game drawn - insufficient material"]

1. c4 {[%clk 0:03:00.9]} 1... Nf6 {[%clk 0:03:00.9]} 2. Nc3 {[%clk 0:03:00]}
2... c5 {[%clk 0:03:00.9]} 3. Nf3 {[%clk 0:02:55.5]} 3... e6 {[%clk 0:03:00.1]}
4. g3 {[%clk 0:02:54.9]} 4... d5 {[%clk 0:02:59.8]} 5. cxd5 {[%clk 0:02:54.1]}
5... exd5 {[%clk 0:03:00.7]} 6. d4 {[%clk 0:02:54.2]} 6... Nc6 {[%clk
0:03:01.6]} 7. Bg2 {[%clk 0:02:53.9]} 7... Be7 {[%clk 0:03:01.4]} 8. O-O {[%clk
0:02:53.4]} 8... O-O {[%clk 0:03:02]} 9. b3 {[%clk 0:02:19.4]} 9... Ne4 {[%clk
0:02:59.5]} 10. Bb2 {[%clk 0:02:17.8]} 10... Bf6 {[%clk 0:02:59.4]} 11. e3
{[%clk 0:01:52.8]} 11... Bg4 {[%clk 0:02:57.6]} 12. h3 {[%clk 0:01:50.1]} 12...
Bxf3 {[%clk 0:02:54.8]} 13. Bxf3 {[%clk 0:01:49.5]} 13... cxd4 {[%clk
0:02:55.2]} 14. Nxe4 {[%clk 0:01:48.5]} 14... dxe4 {[%clk 0:02:55.3]} 15. Bxe4
{[%clk 0:01:48.6]} 15... dxe3 {[%clk 0:02:55.6]} 16. Qxd8 {[%clk 0:01:37]} 16...
exf2+ {[%clk 0:02:55.2]} 17. Rxf2 {[%clk 0:01:36.5]} 17... Bxd8 {[%clk
0:02:55.6]} 18. Rd2 {[%clk 0:01:25.1]} 18... Bb6+ {[%clk 0:02:49.9]} 19. Kg2
{[%clk 0:01:24.2]} 19... Rfe8 {[%clk 0:02:48.5]} 20. Bf3 {[%clk 0:01:19.5]}
20... Rad8 {[%clk 0:02:25.8]} 21. Rad1 {[%clk 0:01:18.5]} 21... Rxd2+ {[%clk
0:02:19.4]} 22. Rxd2 {[%clk 0:01:19.4]} 22... Rd8 {[%clk 0:02:20]} 23. Rxd8+
{[%clk 0:01:04.7]} 23... Nxd8 {[%clk 0:02:20.9]} 24. Kf1 {[%clk 0:01:02.1]}
24... Kf8 {[%clk 0:02:13.9]} 25. Ke2 {[%clk 0:01:00.9]} 25... Nc6 {[%clk
0:02:08.8]} 26. Kd3 {[%clk 0:00:56]} 26... f6 {[%clk 0:02:02.9]} 27. Kc4 {[%clk
0:00:54.7]} 27... Ke7 {[%clk 0:02:00.1]} 28. Ba3+ {[%clk 0:00:48.5]} 28... Kd7
{[%clk 0:01:58.2]} 29. Kd5 {[%clk 0:00:43.3]} 29... g6 {[%clk 0:01:48.4]} 30. g4
{[%clk 0:00:37.5]} 30... Bd8 {[%clk 0:01:43.4]} 31. h4 {[%clk 0:00:23.6]} 31...
Be7 {[%clk 0:01:43.4]} 32. Bb2 {[%clk 0:00:23.3]} 32... b6 {[%clk 0:01:38.2]}
33. a3 {[%clk 0:00:21.8]} 33... Bd8 {[%clk 0:01:37.1]} 34. h5 {[%clk 0:00:20.6]}
34... Ne7+ {[%clk 0:01:37.1]} 35. Kc4 {[%clk 0:00:20.5]} 35... Ke6 {[%clk
0:01:36.8]} 36. hxg6 {[%clk 0:00:19.7]} 36... hxg6 {[%clk 0:01:37.7]} 37. Kb5
{[%clk 0:00:20.1]} 37... a5 {[%clk 0:01:09.6]} 38. Bd4 {[%clk 0:00:17.7]} 38...
Nc8 {[%clk 0:01:08.9]} 39. Kc6 {[%clk 0:00:16.2]} 39... f5 {[%clk 0:01:03]} 40.
gxf5+ {[%clk 0:00:15.8]} 40... gxf5 {[%clk 0:01:03.9]} 41. b4 {[%clk 0:00:10.4]}
41... a4 {[%clk 0:00:52.5]} 42. Bd5+ {[%clk 0:00:09.1]} 42... Ke7 {[%clk
0:00:52.4]} 43. Be5 {[%clk 0:00:09.6]} 43... Na7+ {[%clk 0:00:50]} 44. Kb7
{[%clk 0:00:09.2]} 44... Nb5 {[%clk 0:00:50.9]} 45. Bb2 {[%clk 0:00:09]} 45...
f4 {[%clk 0:00:43.9]} 46. Kc6 {[%clk 0:00:07.4]} 46... Nd6 {[%clk 0:00:42.6]}
47. Be5 {[%clk 0:00:06.1]} 47... Nf5 {[%clk 0:00:42.6]} 48. Bxf4 {[%clk
0:00:05.6]} 48... Nd4+ {[%clk 0:00:43]} 49. Kb7 {[%clk 0:00:05.7]} 49... b5
{[%clk 0:00:40.6]} 50. Be3 {[%clk 0:00:02.8]} 50... Nc2 {[%clk 0:00:41.1]} 51.
Bc5+ {[%clk 0:00:02.9]} 51... Kf6 {[%clk 0:00:41.7]} 52. Ka6 {[%clk 0:00:02]}
52... Nxa3 {[%clk 0:00:42]} 53. Bc6 {[%clk 0:00:02.6]} 53... Nc2 {[%clk
0:00:36.6]} 54. Bxb5 {[%clk 0:00:03]} 54... a3 {[%clk 0:00:37.2]} 55. Bc4 {[%clk
0:00:03.5]} 55... Be7 {[%clk 0:00:31.8]} 56. Bxe7+ {[%clk 0:00:02.9]} 56... Kxe7
{[%clk 0:00:32.7]} 57. b5 {[%clk 0:00:03.6]} 57... Kd6 {[%clk 0:00:32.8]} 58. b6
{[%clk 0:00:04.2]} 58... Nb4+ {[%clk 0:00:31.8]} 59. Kb5 {[%clk 0:00:04.1]}
59... Nc6 {[%clk 0:00:28.4]} 60. Ka4 {[%clk 0:00:04.2]} 60... Kc5 {[%clk
0:00:28.5]} 61. Kxa3 {[%clk 0:00:04.1]} 61... Kxb6 {[%clk 0:00:27.9]} 1/2-1/2

[Event "*** Titled Tuesday Blitz"]
[Site "Chess.com"]
[Date "2021.02.02"]
[Round "5"]
[White "kidagent"]
[Black "Sokoloco"]
[Result "0-1"]
[WhiteElo "2280"]
[BlackElo "2493"]
[TimeControl "180+1"]
[EndTime "10:59:44 PST"]
[Termination "Sokoloco won by resignation"]

1. e4 {[%clk 0:03:00.9]} 1... g6 {[%clk 0:02:57.2]} 2. d4 {[%clk 0:03:00.4]}
2... Bg7 {[%clk 0:02:57.7]} 3. Nf3 {[%clk 0:03:00.8]} 3... d6 {[%clk 0:02:57]}
4. Nc3 {[%clk 0:02:59.4]} 4... a6 {[%clk 0:02:40.3]} 5. Be3 {[%clk 0:02:55.6]}
5... b5 {[%clk 0:02:38.7]} 6. a3 {[%clk 0:02:54.5]} 6... Bb7 {[%clk 0:02:38.7]}
7. Bd3 {[%clk 0:02:48.1]} 7... Nd7 {[%clk 0:02:38.1]} 8. O-O {[%clk 0:02:47.2]}
8... c5 {[%clk 0:02:34.8]} 9. dxc5 {[%clk 0:02:29.3]} 9... Nxc5 {[%clk
0:02:16.1]} 10. Re1 {[%clk 0:02:25.1]} 10... Nxd3 {[%clk 0:02:10.4]} 11. cxd3
{[%clk 0:02:23.7]} 11... Nf6 {[%clk 0:02:07.6]} 12. Qd2 {[%clk 0:02:22]} 12...
O-O {[%clk 0:02:06.2]} 13. Bh6 {[%clk 0:02:20.8]} 13... e5 {[%clk 0:01:40.1]}
14. Bxg7 {[%clk 0:02:17.9]} 14... Kxg7 {[%clk 0:01:40.2]} 15. d4 {[%clk
0:02:15.4]} 15... Re8 {[%clk 0:01:29.7]} 16. Rad1 {[%clk 0:02:13.2]} 16... Qb6
{[%clk 0:01:26.9]} 17. dxe5 {[%clk 0:02:01.9]} 17... dxe5 {[%clk 0:01:27.8]} 18.
Qg5 {[%clk 0:02:01.4]} 18... h6 {[%clk 0:01:09.2]} 19. Qe3 {[%clk 0:01:55.5]}
19... Qxe3 {[%clk 0:01:00]} 20. Rxe3 {[%clk 0:01:56.4]} 20... Rad8 {[%clk
0:01:00.3]} 21. Rxd8 {[%clk 0:01:41.1]} 21... Rxd8 {[%clk 0:01:01.2]} 22. Kf1
{[%clk 0:01:41.3]} 22... Kf8 {[%clk 0:00:33.9]} 23. Nxe5 {[%clk 0:01:33.6]}
23... Rd2 {[%clk 0:00:32.6]} 24. Re2 {[%clk 0:01:23.6]} 24... Rxe2 {[%clk
0:00:28.4]} 25. Kxe2 {[%clk 0:01:24.5]} 25... Nxe4 {[%clk 0:00:28.5]} 26. Nxe4
{[%clk 0:01:16.3]} 26... Bxe4 {[%clk 0:00:29.4]} 27. f3 {[%clk 0:01:14.2]} 27...
Bd5 {[%clk 0:00:29.4]} 28. b4 {[%clk 0:01:07.4]} 28... Ke7 {[%clk 0:00:27.6]}
29. Ke3 {[%clk 0:01:06.6]} 29... Kd6 {[%clk 0:00:21.5]} 30. Kd4 {[%clk 0:01:05]}
30... Be6 {[%clk 0:00:20.5]} 31. Nd3 {[%clk 0:01:00.3]} 31... Bc8 {[%clk
0:00:16.8]} 32. Nc5 {[%clk 0:00:59]} 32... f6 {[%clk 0:00:16.8]} 33. Ne4+ {[%clk
0:00:54.6]} 33... Ke6 {[%clk 0:00:14.8]} 34. Kc5 {[%clk 0:00:53.9]} 34... f5
{[%clk 0:00:13.1]} 35. Nd2 {[%clk 0:00:39.8]} 35... Ke5 {[%clk 0:00:11.8]} 36.
g3 {[%clk 0:00:38]} 36... f4 {[%clk 0:00:10.2]} 37. g4 {[%clk 0:00:31.6]} 37...
h5 {[%clk 0:00:07.3]} 38. h3 {[%clk 0:00:31.5]} 38... hxg4 {[%clk 0:00:05.3]}
39. hxg4 {[%clk 0:00:32.4]} 39... Be6 {[%clk 0:00:05.3]} 40. Kb6 {[%clk
0:00:29.1]} 40... Kd4 {[%clk 0:00:05.5]} 41. Kxa6 {[%clk 0:00:28.9]} 41... Ke3
{[%clk 0:00:05.9]} 42. Ne4 {[%clk 0:00:26.2]} 42... Kxf3 {[%clk 0:00:05.3]} 43.
Ng5+ {[%clk 0:00:25.3]} 43... Ke3 {[%clk 0:00:04.7]} 44. Nxe6 {[%clk 0:00:26.2]}
44... f3 {[%clk 0:00:05.1]} 45. Kxb5 {[%clk 0:00:13.4]} 45... f2 {[%clk
0:00:05.3]} 46. Nc5 {[%clk 0:00:12.2]} 46... f1=Q+ {[%clk 0:00:05]} 47. Kb6
{[%clk 0:00:12.8]} 47... Qf6+ {[%clk 0:00:04.9]} 48. Kb5 {[%clk 0:00:12.3]}
48... Kd4 {[%clk 0:00:05.2]} 49. a4 {[%clk 0:00:10.6]} 49... Qd6 {[%clk
0:00:03.7]} 50. a5 {[%clk 0:00:10.2]} 50... Qb8+ {[%clk 0:00:04.3]} 51. Kc6
{[%clk 0:00:09]} 51... Kc4 {[%clk 0:00:04.5]} 52. a6 {[%clk 0:00:05.1]} 52...
Qb5+ {[%clk 0:00:03.7]} 53. Kd6 {[%clk 0:00:04.6]} 53... Qxb4 {[%clk 0:00:02.9]}
54. a7 {[%clk 0:00:04.5]} 54... Qxc5+ {[%clk 0:00:03.8]} 0-1

[Event "*** Titled Tuesday Blitz"]
[Site "Chess.com"]
[Date "2021.02.02"]
[Round "5"]
[White "szefru"]
[Black "Fortitudine"]
[Result "0-1"]
[WhiteElo "2205"]
[BlackElo "2357"]
[TimeControl "180+1"]
[EndTime "10:59:44 PST"]
[Termination "Fortitudine won by resignation"]

1. e4 {[%clk 0:02:58.1]} 1... c5 {[%clk 0:02:57]} 2. Nf3 {[%clk 0:02:57.4]} 2...
d6 {[%clk 0:02:57]} 3. d4 {[%clk 0:02:57]} 3... cxd4 {[%clk 0:02:57.9]} 4. Qxd4
{[%clk 0:02:57.3]} 4... Bd7 {[%clk 0:02:56.5]} 5. c4 {[%clk 0:02:52.8]} 5... Nc6
{[%clk 0:02:56]} 6. Qd3 {[%clk 0:02:46.8]} 6... g6 {[%clk 0:02:52.7]} 7. Nc3
{[%clk 0:02:44.6]} 7... Rc8 {[%clk 0:02:37.6]} 8. Be2 {[%clk 0:02:40.4]} 8...
Bg7 {[%clk 0:02:30.2]} 9. Be3 {[%clk 0:02:39.4]} 9... Nf6 {[%clk 0:02:28.4]} 10.
h3 {[%clk 0:02:37.3]} 10... O-O {[%clk 0:02:27.4]} 11. O-O {[%clk 0:02:36]}
11... b6 {[%clk 0:02:24.4]} 12. a3 {[%clk 0:02:33.5]} 12... Be6 {[%clk
0:02:14.8]} 13. Nd5 {[%clk 0:02:22.1]} 13... Nd7 {[%clk 0:02:02.7]} 14. Rab1
{[%clk 0:02:06.8]} 14... Nce5 {[%clk 0:01:53.5]} 15. Nxe5 {[%clk 0:02:06.2]}
15... Nxe5 {[%clk 0:01:52.2]} 16. Qc2 {[%clk 0:02:03.2]} 16... b5 {[%clk
0:01:07.9]} 17. b3 {[%clk 0:02:00.3]} 17... Bxd5 {[%clk 0:00:48.5]} 18. exd5
{[%clk 0:01:59.6]} 18... a6 {[%clk 0:00:48.5]} 19. f4 {[%clk 0:01:56.3]} 19...
Nd7 {[%clk 0:00:48.1]} 20. f5 {[%clk 0:01:55.4]} 20... Ne5 {[%clk 0:00:34.5]}
21. Qe4 {[%clk 0:01:53.5]} 21... Qa5 {[%clk 0:00:27.6]} 22. b4 {[%clk 0:01:24]}
22... Qxa3 {[%clk 0:00:22.3]} 23. c5 {[%clk 0:01:24.4]} 23... Nc4 {[%clk
0:00:15.7]} 24. Bxc4 {[%clk 0:01:20.6]} 24... bxc4 {[%clk 0:00:16.6]} 25. Bf2
{[%clk 0:01:03.6]} 25... Qd3 {[%clk 0:00:14.2]} 26. Qxe7 {[%clk 0:00:58.1]}
26... Qxd5 {[%clk 0:00:13.8]} 27. f6 {[%clk 0:00:54.5]} 27... Bh6 {[%clk
0:00:13.1]} 28. Rfd1 {[%clk 0:00:53.3]} 28... Qe6 {[%clk 0:00:12.5]} 29. Rxd6
{[%clk 0:00:50.8]} 29... Qxe7 {[%clk 0:00:11.3]} 30. fxe7 {[%clk 0:00:50.9]}
30... Rfe8 {[%clk 0:00:11.9]} 31. Re1 {[%clk 0:00:47.3]} 31... Bg5 {[%clk
0:00:11.9]} 32. Rxa6 {[%clk 0:00:36.9]} 32... Rxe7 {[%clk 0:00:10.4]} 33. Rxe7
{[%clk 0:00:36]} 33... Bxe7 {[%clk 0:00:11.3]} 34. Ra1 {[%clk 0:00:32]} 34...
Rb8 {[%clk 0:00:08.7]} 35. Be1 {[%clk 0:00:31.1]} 35... Bf6 {[%clk 0:00:07.8]}
36. Rc1 {[%clk 0:00:31.3]} 36... c3 {[%clk 0:00:08]} 37. Bxc3 {[%clk 0:00:30.5]}
37... Bxc3 {[%clk 0:00:08.9]} 38. Rxc3 {[%clk 0:00:31.4]} 38... Rxb4 {[%clk
0:00:09.6]} 39. c6 {[%clk 0:00:32]} 39... Rb8 {[%clk 0:00:10.2]} 40. Kf2 {[%clk
0:00:30.9]} 40... Kf8 {[%clk 0:00:10.1]} 41. Ke3 {[%clk 0:00:31.3]} 41... Ke7
{[%clk 0:00:10.6]} 42. Kd4 {[%clk 0:00:28.3]} 42... Kd6 {[%clk 0:00:10.8]} 43.
Ke4 {[%clk 0:00:26.1]} 43... Rb4+ {[%clk 0:00:09.2]} 44. Kf3 {[%clk 0:00:25.6]}
44... Rb8 {[%clk 0:00:09.8]} 45. Kg4 {[%clk 0:00:25.7]} 45... f6 {[%clk
0:00:10]} 46. Rf3 {[%clk 0:00:20.4]} 46... Rf8 {[%clk 0:00:08.3]} 47. Rc3 {[%clk
0:00:19.9]} 47... Rc8 {[%clk 0:00:08]} 48. h4 {[%clk 0:00:20.2]} 48... Rxc6
{[%clk 0:00:07.9]} 49. Rd3+ {[%clk 0:00:20.9]} 49... Ke6 {[%clk 0:00:08]} 50.
Re3+ {[%clk 0:00:21.4]} 50... Kf7 {[%clk 0:00:08.4]} 51. Rd3 {[%clk 0:00:21.2]}
51... Rc4+ {[%clk 0:00:08.3]} 52. Kh3 {[%clk 0:00:20.8]} 52... Rc7 {[%clk
0:00:09.2]} 53. h5 {[%clk 0:00:19.6]} 53... Re7 {[%clk 0:00:09.3]} 54. hxg6+
{[%clk 0:00:19.5]} 54... hxg6 {[%clk 0:00:10.2]} 55. g4 {[%clk 0:00:20.1]} 55...
g5 {[%clk 0:00:10.3]} 56. Kg3 {[%clk 0:00:20.7]} 56... Kg6 {[%clk 0:00:10.7]}
57. Rf3 {[%clk 0:00:21.2]} 57... Re4 {[%clk 0:00:11.1]} 58. Rd3 {[%clk
0:00:21.5]} 58... Rf4 {[%clk 0:00:11.3]} 59. Re3 {[%clk 0:00:21.6]} 59... Ra4
{[%clk 0:00:11.8]} 60. Ra3 {[%clk 0:00:22.2]} 60... Rxa3+ {[%clk 0:00:11.8]} 61.
Kf2 {[%clk 0:00:22.8]} 0-1

[Event "*** Titled Tuesday Blitz"]
[Site "Chess.com"]
[Date "2021.02.02"]
[Round "5"]
[White "GigaQuparadze"]
[Black "SilviusTiberius"]
[Result "1-0"]
[WhiteElo "2974"]
[BlackElo "2468"]
[TimeControl "180+1"]
[EndTime "10:59:49 PST"]
[Termination "GigaQuparadze won on time"]

1. e4 {[%clk 0:02:56.8]} 1... e5 {[%clk 0:03:00.2]} 2. Nf3 {[%clk 0:02:56.3]}
2... Nc6 {[%clk 0:03:00.6]} 3. Bb5 {[%clk 0:02:55.4]} 3... Nf6 {[%clk
0:03:00.9]} 4. Nc3 {[%clk 0:02:54.9]} 4... Nd4 {[%clk 0:02:59]} 5. Bc4 {[%clk
0:02:54.5]} 5... d6 {[%clk 0:02:50.7]} 6. Nxd4 {[%clk 0:02:52.8]} 6... exd4
{[%clk 0:02:50.7]} 7. Ne2 {[%clk 0:02:53]} 7... Nxe4 {[%clk 0:02:45.8]} 8. Nxd4
{[%clk 0:02:52.5]} 8... Be7 {[%clk 0:02:44.6]} 9. Qf3 {[%clk 0:02:47.6]} 9... d5
{[%clk 0:02:38.6]} 10. Bb5+ {[%clk 0:02:46.5]} 10... Bd7 {[%clk 0:02:37.4]} 11.
Bxd7+ {[%clk 0:02:43.5]} 11... Qxd7 {[%clk 0:02:37.1]} 12. O-O {[%clk
0:02:43.9]} 12... Bf6 {[%clk 0:02:20.3]} 13. Nf5 {[%clk 0:02:43.6]} 13... O-O-O
{[%clk 0:02:07.6]} 14. d3 {[%clk 0:02:41.9]} 14... Nd6 {[%clk 0:01:57.5]} 15.
Nxd6+ {[%clk 0:02:41.4]} 15... Qxd6 {[%clk 0:01:58.4]} 16. Bf4 {[%clk
0:02:41.6]} 16... Qd7 {[%clk 0:01:57.4]} 17. c3 {[%clk 0:02:38.4]} 17... Rde8
{[%clk 0:01:53.1]} 18. Qg3 {[%clk 0:02:38]} 18... g5 {[%clk 0:01:44.4]} 19. Bxg5
{[%clk 0:02:37.3]} 19... Rhg8 {[%clk 0:01:41]} 20. h4 {[%clk 0:02:37]} 20... h6
{[%clk 0:01:39.6]} 21. Qf3 {[%clk 0:02:37.2]} 21... hxg5 {[%clk 0:01:33.3]} 22.
Qxf6 {[%clk 0:02:36.8]} 22... Rg6 {[%clk 0:01:21.6]} 23. Qf3 {[%clk 0:02:35.9]}
23... gxh4 {[%clk 0:01:21.7]} 24. Kh2 {[%clk 0:02:35]} 24... Reg8 {[%clk
0:01:20.2]} 25. Rg1 {[%clk 0:02:34.9]} 25... Qd6+ {[%clk 0:01:14.1]} 26. Kh1
{[%clk 0:02:34.5]} 26... Rf6 {[%clk 0:01:02.4]} 27. Qh3+ {[%clk 0:02:24.8]}
27... Qe6 {[%clk 0:01:02.2]} 28. Qxe6+ {[%clk 0:02:13.2]} 28... fxe6 {[%clk
0:01:01.9]} 29. Raf1 {[%clk 0:02:13.4]} 29... Rgf8 {[%clk 0:00:53.3]} 30. f3
{[%clk 0:02:12.7]} 30... Rg8 {[%clk 0:00:53.4]} 31. Kh2 {[%clk 0:02:12.1]} 31...
Rg3 {[%clk 0:00:50.5]} 32. Re1 {[%clk 0:02:11.2]} 32... Rfg6 {[%clk 0:00:47.3]}
33. a4 {[%clk 0:02:06.3]} 33... Kd7 {[%clk 0:00:46.6]} 34. a5 {[%clk 0:02:06.3]}
34... Kd6 {[%clk 0:00:46.3]} 35. d4 {[%clk 0:02:06.1]} 35... c5 {[%clk
0:00:44.1]} 36. dxc5+ {[%clk 0:02:05.7]} 36... Kxc5 {[%clk 0:00:43.9]} 37. Ref1
{[%clk 0:01:52.5]} 37... e5 {[%clk 0:00:42.5]} 38. Re1 {[%clk 0:01:52]} 38...
Kd6 {[%clk 0:00:38.7]} 39. b4 {[%clk 0:01:48.6]} 39... Rg7 {[%clk 0:00:32.8]}
40. Rd1 {[%clk 0:01:47.1]} 40... Rc7 {[%clk 0:00:31.8]} 41. Rd3 {[%clk
0:01:46.3]} 41... Rgg7 {[%clk 0:00:23.3]} 42. Rgd1 {[%clk 0:01:45.4]} 42... Ke6
{[%clk 0:00:22.2]} 43. Rxd5 {[%clk 0:01:43.3]} 43... Rxc3 {[%clk 0:00:22.5]} 44.
Rd6+ {[%clk 0:01:43.5]} 44... Kf5 {[%clk 0:00:22.7]} 45. R1d2 {[%clk 0:01:43.4]}
45... Rb3 {[%clk 0:00:20.7]} 46. Rh6 {[%clk 0:01:26.5]} 46... Rxb4 {[%clk
0:00:16.6]} 47. Rdd6 {[%clk 0:01:26.4]} 47... Rb2 {[%clk 0:00:14.7]} 48. Rdf6+
{[%clk 0:01:25.2]} 48... Kg5 {[%clk 0:00:14.8]} 49. Re6 {[%clk 0:01:23.6]} 49...
Kf5 {[%clk 0:00:14.6]} 50. Rhf6+ {[%clk 0:01:23]} 50... Kg5 {[%clk 0:00:14.8]}
51. Kh3 {[%clk 0:01:22.6]} 51... Rb1 {[%clk 0:00:14.5]} 52. Kh2 {[%clk
0:01:18.7]} 52... Rb2 {[%clk 0:00:15]} 53. Rf8 {[%clk 0:01:18.4]} 53... Kh5
{[%clk 0:00:12.9]} 54. Rf5+ {[%clk 0:01:12.9]} 54... Rg5 {[%clk 0:00:12]} 55.
Rxg5+ {[%clk 0:01:13.2]} 55... Kxg5 {[%clk 0:00:12.9]} 56. Rxe5+ {[%clk
0:01:13.8]} 56... Kh6 {[%clk 0:00:13.5]} 57. Kh3 {[%clk 0:01:13.2]} 57... Ra2
{[%clk 0:00:13.4]} 58. Rb5 {[%clk 0:01:10.8]} 58... Kg6 {[%clk 0:00:13.4]} 59.
Rxb7 {[%clk 0:01:10.7]} 59... Rxa5 {[%clk 0:00:13.8]} 60. Kxh4 {[%clk 0:01:11]}
60... Ra1 {[%clk 0:00:13.6]} 61. Kg4 {[%clk 0:01:10.8]} 61... a5 {[%clk
0:00:14.5]} 62. f4 {[%clk 0:01:11]} 62... a4 {[%clk 0:00:15.1]} 63. Ra7 {[%clk
0:01:11.3]} 63... Kf6 {[%clk 0:00:15.8]} 64. Ra6+ {[%clk 0:01:10.2]} 64... Kf7
{[%clk 0:00:16]} 65. Kf5 {[%clk 0:01:10.6]} 65... a3 {[%clk 0:00:16.3]} 66. g4
{[%clk 0:01:10.7]} 66... Ke7 {[%clk 0:00:16.7]} 67. g5 {[%clk 0:01:10.9]} 67...
Kf7 {[%clk 0:00:16.6]} 68. Ra7+ {[%clk 0:01:10.7]} 68... Ke8 {[%clk 0:00:16.4]}
69. g6 {[%clk 0:01:10.4]} 69... a2 {[%clk 0:00:15.7]} 70. Kf6 {[%clk 0:01:10.5]}
70... Rf1 {[%clk 0:00:14.5]} 71. Ra8+ {[%clk 0:01:10.6]} 71... Kd7 {[%clk
0:00:14.4]} 72. Rxa2 {[%clk 0:01:11]} 72... Rxf4+ {[%clk 0:00:14.5]} 73. Kg5
{[%clk 0:01:11.3]} 73... Rf1 {[%clk 0:00:14.5]} 74. g7 {[%clk 0:01:11.6]} 74...
Ke7 {[%clk 0:00:13.9]} 75. Ra7+ {[%clk 0:01:09.2]} 75... Ke6 {[%clk 0:00:14]}
76. g8=Q+ {[%clk 0:01:07.8]} 1-0

[Event "*** Titled Tuesday Blitz"]
[Site "Chess.com"]
[Date "2021.02.02"]
[Round "5"]
[White "DenLaz"]
[Black "scarabee43"]
[Result "1/2-1/2"]
[WhiteElo "2822"]
[BlackElo "2600"]
[TimeControl "180+1"]
[EndTime "10:59:52 PST"]
[Termination "Game drawn - insufficient material"]

1. d4 {[%clk 0:03:00.9]} 1... Nf6 {[%clk 0:02:59.5]} 2. c4 {[%clk 0:03:00.3]}
2... e6 {[%clk 0:02:59.6]} 3. Nf3 {[%clk 0:03:00.2]} 3... d5 {[%clk 0:02:58.6]}
4. Nc3 {[%clk 0:02:59]} 4... Be7 {[%clk 0:02:58.5]} 5. Bg5 {[%clk 0:02:57]} 5...
O-O {[%clk 0:02:58.4]} 6. e3 {[%clk 0:02:56.7]} 6... h6 {[%clk 0:02:57.3]} 7.
Bh4 {[%clk 0:02:52.9]} 7... b6 {[%clk 0:02:56.7]} 8. Bd3 {[%clk 0:02:50.6]} 8...
Bb7 {[%clk 0:02:53.6]} 9. O-O {[%clk 0:02:50.8]} 9... Nbd7 {[%clk 0:02:52.4]}
10. Qe2 {[%clk 0:02:50.2]} 10... Ne4 {[%clk 0:02:52.3]} 11. Bxe7 {[%clk
0:02:49.3]} 11... Qxe7 {[%clk 0:02:52.2]} 12. Rfd1 {[%clk 0:02:49.7]} 12... Rad8
{[%clk 0:02:41.7]} 13. cxd5 {[%clk 0:02:38.3]} 13... exd5 {[%clk 0:02:40.5]} 14.
a4 {[%clk 0:02:37.2]} 14... a5 {[%clk 0:02:32.8]} 15. Rac1 {[%clk 0:02:35.8]}
15... Rfe8 {[%clk 0:02:25.8]} 16. Ba6 {[%clk 0:02:26.8]} 16... Bxa6 {[%clk
0:02:11.7]} 17. Qxa6 {[%clk 0:02:27.7]} 17... Ndf6 {[%clk 0:02:11.6]} 18. Ne5
{[%clk 0:02:23.7]} 18... Ra8 {[%clk 0:01:39.8]} 19. Qb5 {[%clk 0:02:19.5]} 19...
Qd6 {[%clk 0:01:25.4]} 20. Qc6 {[%clk 0:01:40.7]} 20... Qxc6 {[%clk 0:00:49.3]}
21. Nxc6 {[%clk 0:01:41.6]} 21... Nxc3 {[%clk 0:00:40.5]} 22. Rxc3 {[%clk
0:01:39]} 22... Re6 {[%clk 0:00:38.4]} 23. Rdc1 {[%clk 0:01:37.2]} 23... Kf8
{[%clk 0:00:33.9]} 24. f3 {[%clk 0:01:36.1]} 24... Nd7 {[%clk 0:00:29.6]} 25. g4
{[%clk 0:01:30.3]} 25... Rae8 {[%clk 0:00:29.4]} 26. Kf2 {[%clk 0:01:29.7]}
26... g6 {[%clk 0:00:29.6]} 27. h4 {[%clk 0:01:28.4]} 27... f5 {[%clk
0:00:29.5]} 28. gxf5 {[%clk 0:01:16.5]} 28... gxf5 {[%clk 0:00:29.6]} 29. R1c2
{[%clk 0:00:55.7]} 29... Kg7 {[%clk 0:00:20.9]} 30. b4 {[%clk 0:00:53.9]} 30...
axb4 {[%clk 0:00:18.5]} 31. Nxb4 {[%clk 0:00:54.8]} 31... c5 {[%clk 0:00:15.9]}
32. Nxd5 {[%clk 0:00:53.9]} 32... cxd4 {[%clk 0:00:16.2]} 33. exd4 {[%clk
0:00:54.8]} 33... Rd6 {[%clk 0:00:16.4]} 34. Ne3 {[%clk 0:00:53.7]} 34... Kf6
{[%clk 0:00:14.3]} 35. Rc6 {[%clk 0:00:51]} 35... Ree6 {[%clk 0:00:11.8]} 36. d5
{[%clk 0:00:49.1]} 36... Rxc6 {[%clk 0:00:10.1]} 37. dxc6 {[%clk 0:00:48.3]}
37... Nc5 {[%clk 0:00:10.2]} 38. c7 {[%clk 0:00:48.5]} 38... Rc6 {[%clk
0:00:10.7]} 39. Rd2 {[%clk 0:00:19.9]} 39... Ke6 {[%clk 0:00:10.8]} 40. Nd5
{[%clk 0:00:19.1]} 40... Nxa4 {[%clk 0:00:08.9]} 41. Nf4+ {[%clk 0:00:14.8]}
41... Ke7 {[%clk 0:00:08.6]} 42. Ra2 {[%clk 0:00:13.9]} 42... Nc3 {[%clk
0:00:07.5]} 43. Ra8 {[%clk 0:00:11.3]} 43... Rxc7 {[%clk 0:00:07.7]} 44. Rb8
{[%clk 0:00:09.3]} 44... Rc4 {[%clk 0:00:08.3]} 45. Ng6+ {[%clk 0:00:09.2]}
45... Kf7 {[%clk 0:00:08.2]} 46. Ne5+ {[%clk 0:00:09.2]} 46... Ke6 {[%clk
0:00:08.2]} 47. Nxc4 {[%clk 0:00:10.1]} 47... Kd5 {[%clk 0:00:08.3]} 48. Nxb6+
{[%clk 0:00:08.4]} 48... Kc6 {[%clk 0:00:08.6]} 49. Nc4 {[%clk 0:00:08.7]} 49...
Kd5 {[%clk 0:00:09.1]} 50. Ne3+ {[%clk 0:00:09]} 50... Ke5 {[%clk 0:00:09.6]}
51. Rb5+ {[%clk 0:00:09.4]} 51... Nxb5 {[%clk 0:00:09.2]} 52. Ng2 {[%clk
0:00:08.2]} 52... Nd4 {[%clk 0:00:09]} 53. Kg3 {[%clk 0:00:08.6]} 53... Ne2+
{[%clk 0:00:08.8]} 54. Kf2 {[%clk 0:00:09.1]} 54... Nd4 {[%clk 0:00:09.4]} 55.
Ne3 {[%clk 0:00:08.9]} 55... f4 {[%clk 0:00:09.5]} 56. Ng4+ {[%clk 0:00:09.2]}
56... Kf5 {[%clk 0:00:09.8]} 57. Nxh6+ {[%clk 0:00:10.1]} 57... Kg6 {[%clk
0:00:10.3]} 58. Ng4 {[%clk 0:00:09.7]} 58... Kh5 {[%clk 0:00:10.8]} 59. Nf6+
{[%clk 0:00:09.4]} 59... Kxh4 {[%clk 0:00:11.1]} 60. Ne4 {[%clk 0:00:10.3]}
60... Kh5 {[%clk 0:00:11.3]} 61. Nc5 {[%clk 0:00:10.4]} 61... Nxf3 {[%clk
0:00:11]} 62. Kxf3 {[%clk 0:00:10.7]} 62... Kg5 {[%clk 0:00:11.3]} 63. Ne6+
{[%clk 0:00:10.8]} 63... Kg6 {[%clk 0:00:11.9]} 64. Nxf4+ {[%clk 0:00:11.7]}
1/2-1/2